fUST/lending_fUST_20250925
["ID","MTS","AMOUNT","RATE_DAILY","PERIOD"]
[387660037,1758801033443,-480.0,0.00019346,2]
[387660038,1758801033453,-480.0,0.00019346,2]
[387660039,1758801033463,-480.0,0.00019346,2]
[387660040,1758801033472,-480.0,0.00019346,2]
[387660041,1758801033482,-480.0,0.00019346,2]
[387660043,1758801033492,-483.7972406,0.00019346,2]
[387660045,1758801033502,-480.0,0.00019346,2]
[387660047,1758801033512,-482.8369745,0.00019346,2]
[387660049,1758801033523,-480.0,0.00019346,2]
[387660051,1758801033532,-480.0,0.00019346,2]
[387660053,1758801033542,-480.0,0.00019346,2]
[387660055,1758801033552,-480.0,0.00019346,2]
[387660057,1758801033563,-275.83967304,0.00019346,2]
[387660059,1758801033572,-480.0,0.00019346,2]
[387660061,1758801033582,-480.0,0.00019346,2]
[387660063,1758801033592,-480.0,0.00019346,2]
[387660065,1758801033604,-480.0,0.00019346,2]
[387660067,1758801033614,-480.0,0.00019346,2]
[387660069,1758801033624,-490.14471729,0.00019346,2]
[387660071,1758801033634,-480.0,0.00019346,2]
[387660073,1758801033644,-482.88994334,0.00019346,2]
[387660075,1758801033653,-480.0,0.00019346,2]
[387660077,1758801033663,-483.00748461,0.00019346,2]
[387660079,1758801033672,-480.0,0.00019346,2]
[387660081,1758801033682,-480.0,0.00019346,2]
[387660083,1758801033692,-480.0,0.00019346,2]
[387660084,1758801033701,-548.82819789,0.00019346,2]
[387660087,1758801033711,-480.0,0.00019346,2]
[387660089,1758801033722,-480.0,0.00019346,2]
[387660091,1758801033731,-480.0,0.00019346,2]
[387660093,1758801033741,-480.0,0.00019346,2]
[387660095,1758801033751,-622.4,0.00019346,2]
[387660096,1758801033761,-480.0,0.00019346,2]
[387660098,1758801033772,-480.0,0.00019346,2]
[387660100,1758801033782,-480.0,0.00019346,2]
[387660103,1758801033792,-480.0,0.00019346,2]
[387660105,1758801033803,-504.57088496,0.00019346,2]
[387660107,1758801033812,-480.0,0.00019346,2]
[387660109,1758801033822,-480.0,0.00019346,2]
[387660110,1758801033831,-480.0,0.00019346,2]
[387660112,1758801033841,-480.0,0.00019346,2]
[387660114,1758801033851,-480.0,0.00019346,2]
[387660116,1758801033861,-480.0,0.00019346,2]
[387660118,1758801033871,-480.0,0.00019346,2]
[387660121,1758801033882,-480.0,0.00019346,2]
[387660123,1758801033892,-480.0,0.00019346,2]
[387660125,1758801033902,-429.2939867,0.00019346,2]
[387660127,1758801033911,-491.49768794,0.00019346,2]
[387660129,1758801033921,-480.0,0.00019346,2]
[387660131,1758801033931,-480.0,0.00019346,2]
[387660133,1758801033940,-480.0,0.00019346,2]
[387660135,1758801033949,-480.0,0.00019346,2]
[387660137,1758801033959,-480.0,0.00019346,2]
[387660138,1758801033972,-212.15676891,0.00019346,2]
[387660140,1758801033981,-319.99861038,0.00019346,2]
[387660142,1758801033991,-480.0,0.00019346,2]
[387660144,1758801034000,-480.0,0.00019346,2]
[387660146,1758801034011,-480.0,0.00019346,2]
[387660148,1758801034023,-480.0,0.00019346,2]
[387660150,1758801034032,-480.0,0.00019346,2]
[387660152,1758801034043,-480.0,0.00019346,2]
[387660154,1758801034053,-480.0,0.00019346,2]
[387660156,1758801034063,-532.33934526,0.00019346,2]
[387660158,1758801034073,-21.18148715,0.00019346,2]
[387660161,1758801034087,-458.81851285,0.00019346,2]
[387660163,1758801034097,-480.0,0.00019346,2]
[387660165,1758801034107,-482.18472451,0.00019346,2]
[387660167,1758801034118,-480.0,0.00019346,2]
[387660169,1758801034128,-351.87513494,0.00019346,2]
[387660171,1758801034138,-480.0,0.00019346,2]
[387660173,1758801034147,-480.0,0.00019346,2]
[387660175,1758801034157,-480.0,0.00019346,2]
[387660177,1758801034167,-480.0,0.00019346,2]
[387660178,1758801034177,-480.0,0.00019346,2]
[387660180,1758801034187,-480.0,0.00019346,2]
[387660183,1758801034202,-480.0,0.00019346,2]
[387660185,1758801034212,-480.0,0.00019346,2]
[387660187,1758801034222,-482.04314207,0.00019346,2]
[387660188,1758801034232,-480.0,0.00019346,2]
[387660191,1758801034243,-480.0,0.00019346,2]
[387660193,1758801034253,-480.0,0.00019346,2]
[387660195,1758801034263,-480.0,0.00019346,2]
[387660197,1758801034277,-480.0,0.00019346,2]
[387660199,1758801034286,-480.0,0.00019346,2]
[387660201,1758801034296,-480.0,0.00019346,2]
[387660202,1758801034305,-411.85765476,0.00019346,2]
[387660205,1758801034318,-68.14234524,0.00019346,2]
[387660207,1758801034327,-480.0,0.00019346,2]
[387660208,1758801034337,-480.0,0.00019346,2]
[387660209,1758801034347,-480.0,0.00019346,2]
[387660211,1758801034356,-480.0,0.00019346,2]
[387660213,1758801034366,-500.0,0.00019346,2]
[387660215,1758801034376,-480.0,0.00019346,2]
[387660216,1758801034385,-480.0,0.00019346,2]
[387660217,1758801034395,-480.0,0.00019346,2]
[387660218,1758801034404,-480.0,0.00019346,2]
[387660219,1758801034414,-479.99561426,0.00019346,2]
[387660220,1758801034423,-480.0,0.00019346,2]
[387660221,1758801034433,-206.8620405,0.00019346,2]
[387660223,1758801034445,-273.1379595,0.00019346,2]
[387660225,1758801034454,-197.38302056,0.00019346,2]
[387660228,1758801036567,480.0,0.00019344,2]
[387660266,1758801038441,-480.0,0.00019345,2]
[387660268,1758801038451,-285.22472608,0.00019346,2]
[387660270,1758801038460,-480.0,0.00019346,2]
[387660272,1758801038470,-480.0,0.00019346,2]
[387660274,1758801038479,-62.42527392,0.00019346,2]
[387660276,1758801038491,-417.57472608,0.00019346,2]
[387660278,1758801038500,-480.0,0.00019346,2]
[387660280,1758801038509,-480.0,0.00019346,2]
[387660291,1758801038604,-122.89950445,0.00019346,2]
[387660294,1758801038617,-81.23506799,0.00019346,2]
[387660296,1758801038627,-496.32408691,0.00019346,2]
[387660298,1758801038636,-480.0,0.00019346,2]
[387660300,1758801038646,-480.0,0.00019346,2]
[387660302,1758801038655,-166.00260773,0.00019346,2]
[387660304,1758801038667,-337.6502511,0.00019346,2]
[387660306,1758801038676,-52.54932286,0.00019346,2]
[387660309,1758801038697,-427.45067714,0.00019346,2]
[387660311,1758801038706,-480.0,0.00019346,2]
[387660313,1758801038715,-496.55117926,0.00019346,2]
[387660315,1758801038725,-480.0,0.00019346,2]
[387660317,1758801038734,-480.0,0.00019346,2]
[387660319,1758801038743,-488.50562373,0.00019346,2]
[387660321,1758801038752,-1172.01,0.00019346,2]
[387660323,1758801038762,-480.0,0.00019346,2]
[387660325,1758801038773,-480.0,0.00019346,2]
[387660327,1758801038783,-417.28021032,0.00019346,2]
[387660329,1758801038792,-480.0,0.00019346,2]
[387660331,1758801038802,-480.0,0.00019346,2]
[387660333,1758801038811,-480.0,0.00019346,2]
[387660335,1758801038820,-480.0,0.00019346,2]
[387660337,1758801038829,-480.0,0.00019346,2]
[387660339,1758801038839,-480.0,0.00019346,2]
[387660341,1758801038848,-480.0,0.00019346,2]
[387660343,1758801038858,-480.0,0.00019346,2]
[387660345,1758801038867,-480.0,0.00019346,2]
[387660347,1758801038876,-480.0,0.00019346,2]
[387660349,1758801038885,-480.0,0.00019346,2]
[387660351,1758801038895,-480.0,0.00019346,2]
[387660353,1758801038904,-480.0,0.00019346,2]
[387660356,1758801038915,-480.0,0.00019346,2]
[387660358,1758801038924,-480.0,0.00019346,2]
[387660360,1758801038933,-480.0,0.00019346,2]
[387660362,1758801038943,-480.0,0.00019346,2]
[387660363,1758801038952,-618.88,0.00019346,2]
[387660366,1758801038964,-481.24462171,0.00019347,2]
[387660368,1758801038975,-480.0,0.00019347,2]
[387660370,1758801038984,-435.14850304,0.00019347,2]
[387660372,1758801038993,-480.0,0.00019347,2]
[387660374,1758801039002,-200.0,0.00019347,2]
[387660376,1758801039012,-480.0,0.00019347,2]
[387660378,1758801039023,-500.0,0.00019347,2]
[387660380,1758801039033,-500.0,0.00019347,2]
[387660382,1758801039045,-500.0,0.00019347,2]
[387660384,1758801039054,-374.57659042,0.00019347,2]
[387660386,1758801039063,-500.0,0.00019347,2]
[387660388,1758801039073,-500.0,0.00019347,2]
[387660390,1758801039082,-500.0,0.00019347,2]
[387660392,1758801039093,-500.0,0.00019347,2]
[387660394,1758801039102,-452.39991463,0.00019347,2]
[387660396,1758801039113,-480.0,0.00019347,2]
[387660398,1758801039122,-1185.59,0.00019347,2]
[387660400,1758801039132,-1185.59,0.00019347,2]
[387660402,1758801039141,-1185.59,0.00019347,2]
[387660404,1758801039151,-1185.59,0.00019347,2]
[387660406,1758801039160,-1185.59,0.00019347,2]
[387660408,1758801039170,-1185.59,0.00019347,2]
[387660410,1758801039180,-1185.59,0.00019347,2]
[387660412,1758801039189,-1185.59,0.00019347,2]
[387660414,1758801039199,-1185.59,0.00019347,2]
[387660416,1758801039208,-500.0,0.00019348,2]
[387660418,1758801039217,-151.0,0.00019349,2]
[387660420,1758801039226,-210.16485027,0.00019349,2]
[387660422,1758801039235,-151.0,0.00019349,2]
[387660424,1758801039244,-151.0,0.00019349,2]
[387660426,1758801039254,-151.0,0.00019349,2]
[387660428,1758801039263,-151.0,0.00019349,2]
[387660430,1758801039273,-151.0,0.00019349,2]
[387660432,1758801039282,-246.33756732,0.00019349,2]
[387660434,1758801039292,-151.0,0.00019349,2]
[387660436,1758801039301,-151.0,0.00019349,2]
[387660438,1758801039311,-151.0,0.00019349,2]
[387660440,1758801039320,-151.0,0.00019349,2]
[387660442,1758801039329,-151.0,0.00019349,2]
[387660443,1758801039338,-151.0,0.00019349,2]
[387660444,1758801039347,-155.81474067,0.00019349,2]
[387660445,1758801039357,-152.22216253,0.00019349,2]
[387660446,1758801039367,-151.0,0.00019349,2]
[387660447,1758801039376,-151.0,0.00019349,2]
[387660448,1758801039386,-151.0,0.00019349,2]
[387660449,1758801039396,-500.0,0.00019349,2]
[387660450,1758801039405,-151.0,0.00019349,2]
[387660451,1758801039415,-500.0,0.00019349,2]
[387660452,1758801039424,-151.0,0.00019349,2]
[387660453,1758801039434,-1185.59,0.0001935,2]
[387660454,1758801039444,-500.0,0.0001935,2]
[387660455,1758801039453,-1185.59,0.00019351,2]
[387660456,1758801039463,-1185.59,0.00019351,2]
[387660457,1758801039472,-1185.59,0.00019351,2]
[387660458,1758801039482,-1185.59,0.00019351,2]
[387660459,1758801039491,-1185.59,0.00019351,2]
[387660460,1758801039501,-1185.59,0.00019351,2]
[387660461,1758801039511,-1185.59,0.00019351,2]
[387660462,1758801039520,-1185.59,0.00019351,2]
[387660463,1758801039531,-1185.59,0.00019351,2]
[387660464,1758801039540,-1185.59,0.00019351,2]
[387660465,1758801039549,-1185.59,0.00019351,2]
[387660466,1758801039559,-1185.59,0.00019351,2]
[387660467,1758801039568,-1185.59,0.00019351,2]
[387660468,1758801039577,-1185.69102042,0.00019351,2]
[387660469,1758801039587,-500.0,0.00019351,2]
[387660470,1758801039596,-500.0,0.00019351,2]
[387660471,1758801039605,-500.0,0.00019351,2]
[387660472,1758801039615,-500.0,0.00019351,2]
[387660473,1758801039624,-500.0,0.00019351,2]
[387660474,1758801039633,-500.0,0.00019351,2]
[387660475,1758801039643,-500.0,0.00019351,2]
[387660476,1758801039652,-500.0,0.00019351,2]
[387660477,1758801039661,-500.0,0.00019351,2]
[387660478,1758801039670,-500.0,0.00019351,2]
[387660479,1758801039680,-224.82191932,0.00019351,2]
[387660480,1758801039691,-370000.0,0.00019352,2]
[387660481,1758801039700,-500.0,0.000194,2]
[387660482,1758801039710,-480.0,0.00019619,2]
[387660483,1758801039719,-480.0,0.00019619,2]
[387660484,1758801039728,-480.0,0.00019619,2]
[387660485,1758801039738,-480.0,0.00019619,2]
[387660486,1758801039747,-480.0,0.00019619,2]
[387660487,1758801039756,-480.0,0.00019619,2]
[387660488,1758801039766,-480.0,0.00019619,2]
[387660489,1758801039777,-480.0,0.00019619,2]
[387660490,1758801039787,-182.92559244,0.00019619,2]
[387660491,1758801039796,-480.0,0.00019619,2]
[387660492,1758801039807,-489.62163808,0.00019619,2]
[387660493,1758801039816,-541.92057846,0.00019619,2]
[387660494,1758801039825,-480.0,0.00019619,2]
[387660495,1758801039835,-480.0,0.00019619,2]
[387660496,1758801039845,-480.0,0.00019619,2]
[387660498,1758801039855,-495.28364124,0.00019619,2]
[387660500,1758801039865,-480.0,0.00019619,2]
[387660501,1758801039874,-480.0,0.00019619,2]
[387660503,1758801039885,-480.0,0.00019619,2]
[387660505,1758801039894,-480.0,0.00019619,2]
[387660506,1758801039904,-305.36714566,0.00019619,2]
[387660507,1758801039913,-485.71689908,0.00019619,2]
[387660508,1758801039923,-480.0,0.00019619,2]
[387660509,1758801039933,-528.34868522,0.00019619,2]
[387660510,1758801039942,-582.95871262,0.00019619,2]
[387660511,1758801039952,-480.0,0.00019619,2]
[387660512,1758801039961,-480.0,0.00019619,2]
[387660513,1758801039975,-480.0,0.00019619,2]
[387660514,1758801039984,-480.0,0.00019619,2]
[387660515,1758801039994,-480.0,0.00019619,2]
[387660517,1758801040003,-480.0,0.00019619,2]
[387660518,1758801040014,-493.87793234,0.00019619,2]
[387660519,1758801040023,-480.0,0.00019619,2]
[387660520,1758801040033,-480.0,0.00019619,2]
[387660521,1758801040046,-480.0,0.00019619,2]
[387660522,1758801040056,-495.68,0.00019619,2]
[387660523,1758801040065,-480.0,0.00019619,2]
[387660524,1758801040075,-480.0,0.00019619,2]
[387660525,1758801040084,-400.52276005,0.00019619,2]
[387660526,1758801040094,-482.09188967,0.0001962,2]
[387660527,1758801040103,-480.0,0.0001962,2]
[387660528,1758801040112,-480.0,0.0001962,2]
[387660529,1758801040122,-480.0,0.0001962,2]
[387660530,1758801040132,-480.0,0.0001962,2]
[387660531,1758801040142,-480.0,0.0001962,2]
[387660532,1758801040151,-493.37713343,0.0001962,2]
[387660533,1758801040161,-480.0,0.0001962,2]
[387660534,1758801040171,-480.0,0.0001962,2]
[387660535,1758801040180,-480.0,0.0001962,2]
[387660536,1758801040190,-480.0,0.0001962,2]
[387660537,1758801040200,-480.0,0.0001962,2]
[387660538,1758801040210,-480.0,0.0001962,2]
[387660539,1758801040219,-480.0,0.0001962,2]
[387660540,1758801040229,-480.0,0.0001962,2]
[387660541,1758801040239,-480.0,0.0001962,2]
[387660542,1758801040249,-480.0,0.0001962,2]
[387660543,1758801040259,-496.53360599,0.0001962,2]
[387660544,1758801040268,-480.0,0.0001962,2]
[387660545,1758801040278,-480.0,0.0001962,2]
[387660546,1758801040287,-335.00843238,0.0001962,2]
[387660547,1758801040297,-480.0,0.0001962,2]
[387660548,1758801040307,-480.0,0.0001962,2]
[387660549,1758801040316,-480.0,0.0001962,2]
[387660550,1758801040326,-480.0,0.0001962,2]
[387660551,1758801040336,-480.0,0.0001962,2]
[387660552,1758801040346,-480.0,0.0001962,2]
[387660553,1758801040356,-480.0,0.0001962,2]
[387660554,1758801040366,-480.0,0.0001962,2]
[387660555,1758801040376,-480.0,0.0001962,2]
[387660556,1758801040385,-480.0,0.0001962,2]
[387660557,1758801040396,-480.0,0.0001962,2]
[387660558,1758801040405,-480.0,0.0001962,2]
[387660559,1758801040416,-480.0,0.0001962,2]
[387660560,1758801040425,-480.0,0.0001962,2]
[387660561,1758801040435,-474.93872619,0.0001962,2]
[387660562,1758801040446,-480.0,0.0001962,2]
[387660563,1758801040455,-480.0,0.0001962,2]
[387660564,1758801040465,-480.0,0.0001962,2]
[387660566,1758801040474,-2434.99,0.0001962,2]
[387660568,1758801040484,-500.0,0.0001962,2]
[387660570,1758801040494,-480.0,0.0001962,2]
[387660572,1758801040504,-480.0,0.0001962,2]
[387660574,1758801040513,-392.18117267,0.0001962,2]
[387660576,1758801040523,-486.81814375,0.0001962,2]
[387660578,1758801040535,-486.81290291,0.0001962,2]
[387660580,1758801040545,-428.52566251,0.0001962,2]
[387660590,1758801040627,-512.39797834,0.0001962,2]
[387660592,1758801040637,-483.64938974,0.0001962,2]
[387660594,1758801040646,-480.0,0.0001962,2]
[387660596,1758801040656,-484.72136391,0.0001962,2]
[387660598,1758801040665,-480.0,0.0001962,2]
[387660599,1758801040676,-480.0,0.0001962,2]
[387660601,1758801040685,-480.0,0.0001962,2]
[387660603,1758801040695,-480.0,0.0001962,2]
[387660605,1758801040704,-480.0,0.0001962,2]
[387660607,1758801040713,-480.0,0.0001962,2]
[387660609,1758801040723,-458.54071435,0.0001962,2]
[387660611,1758801040732,-480.0,0.0001962,2]
[387660613,1758801040741,-480.0,0.0001962,2]
[387660615,1758801040751,-480.0,0.0001962,2]
[387660617,1758801040760,-480.0,0.0001962,2]
[387660619,1758801040769,-480.0,0.0001962,2]
[387660621,1758801040781,-480.0,0.0001962,2]
[387660623,1758801040791,-480.0,0.0001962,2]
[387660625,1758801040800,-480.0,0.0001962,2]
[387660627,1758801040810,-582.11728596,0.0001962,2]
[387660629,1758801040821,-480.0,0.0001962,2]
[387660631,1758801040831,-480.0,0.0001962,2]
[387660633,1758801040841,-480.0,0.0001962,2]
[387660635,1758801040851,-622.4,0.0001962,2]
[387660637,1758801040861,-480.0,0.0001962,2]
[387660639,1758801040870,-480.0,0.0001962,2]
[387660641,1758801040880,-480.0,0.0001962,2]
[387660643,1758801040889,-480.0,0.0001962,2]
[387660645,1758801040899,-480.0,0.0001962,2]
[387660647,1758801040908,-480.0,0.0001962,2]
[387660649,1758801040917,-480.0,0.0001962,2]
[387660651,1758801040927,-274.36901406,0.0001962,2]
[387660653,1758801040936,-480.0,0.0001962,2]
[387660655,1758801040945,-481.15366163,0.0001962,2]
[387660657,1758801040955,-480.0,0.0001962,2]
[387660659,1758801040972,-480.0,0.0001962,2]
[387660661,1758801040981,-480.0,0.0001962,2]
[387660663,1758801040990,-477.93431732,0.0001962,2]
[387660665,1758801041000,-480.0,0.0001962,2]
[387660667,1758801041010,-480.0,0.0001962,2]
[387660669,1758801041019,-480.0,0.0001962,2]
[387660670,1758801041030,-480.0,0.0001962,2]
[387660671,1758801041039,-480.0,0.0001962,2]
[387660672,1758801041051,-480.0,0.0001962,2]
[387660673,1758801041061,-480.0,0.0001962,2]
[387660674,1758801041071,-480.0,0.0001962,2]
[387660675,1758801041079,-494.18546131,0.0001962,2]
[387660676,1758801041089,-480.0,0.0001962,2]
[387660677,1758801041098,-484.95030407,0.0001962,2]
[387660678,1758801041108,-480.0,0.0001962,2]
[387660679,1758801041117,-401.79874406,0.0001962,2]
[387660680,1758801041127,-480.0,0.0001962,2]
[387660681,1758801041138,-488.31688451,0.0001962,2]
[387660682,1758801041147,-297.34227996,0.0001962,2]
[387660683,1758801041156,-480.0,0.0001962,2]
[387660685,1758801041166,-540.0,0.0001962,2]
[387660687,1758801041175,-480.0,0.0001962,2]
[387660689,1758801041184,-480.0,0.0001962,2]
[387660691,1758801041194,-353.40512439,0.0001962,2]
[387660693,1758801041203,-1172.01,0.0001962,2]
[387660695,1758801041213,-480.0,0.0001962,2]
[387660697,1758801041222,-480.0,0.0001962,2]
[387660699,1758801041232,-413.50501345,0.0001962,2]
[387660701,1758801041242,-480.0,0.0001962,2]
[387660703,1758801041251,-480.0,0.0001962,2]
[387660705,1758801041260,-480.0,0.0001962,2]
[387660707,1758801041271,-480.0,0.0001962,2]
[387660709,1758801041282,-480.0,0.0001962,2]
[387660711,1758801041291,-480.0,0.0001962,2]
[387660713,1758801041301,-480.0,0.0001962,2]
[387660715,1758801041310,-480.0,0.0001962,2]
[387660717,1758801041319,-480.0,0.0001962,2]
[387660719,1758801041329,-480.0,0.0001962,2]
[387660721,1758801041339,-480.0,0.0001962,2]
[387660722,1758801041348,-406.27279815,0.00019621,2]
[387660725,1758801041358,-486.28088052,0.00019621,2]
[387660727,1758801041368,-574.11963063,0.00019621,2]
[387660729,1758801041378,-500.0,0.00019622,2]
[387660731,1758801041387,-198.87602421,0.00019623,2]
[387660733,1758801041396,-151.0,0.00019623,2]
[387660735,1758801041405,-151.0,0.00019623,2]
[387660736,1758801041415,-151.59310519,0.00019623,2]
[387660739,1758801041427,-151.93961096,0.00019623,2]
[387660741,1758801041436,-246.90162727,0.00019623,2]
[387660743,1758801041446,-247.14406961,0.00019623,2]
[387660745,1758801041455,-151.0,0.00019623,2]
[387660746,1758801041464,-151.0,0.00019623,2]
[387660748,1758801041474,-151.0,0.00019623,2]
[387660750,1758801041483,-151.0,0.00019623,2]
[387660752,1758801041493,-500.0,0.00019623,2]
[387660755,1758801041504,-500.0,0.00019623,2]
[387660757,1758801041513,-151.0,0.00019623,2]
[387660759,1758801041522,-501.45936657,0.00019673,2]
[387660761,1758801041533,-615.70177796,0.00019893,2]
[387660762,1758801041543,-480.0,0.00019893,2]
[387660764,1758801041552,-486.60595937,0.00019893,2]
[387660766,1758801041562,-500.41549574,0.00019893,2]
[387660769,1758801041571,-412.63670184,0.00019893,2]
[387660771,1758801041581,-480.0,0.00019893,2]
[387660773,1758801041590,-528.91727054,0.00019893,2]
[387660775,1758801041600,-480.0,0.00019893,2]
[387660777,1758801041611,-625.8403494,0.00019893,2]
[387660779,1758801041620,-480.0,0.00019893,2]
[387660781,1758801041629,-527.85392026,0.00019893,2]
[387660783,1758801041639,-480.0,0.00019893,2]
[387660785,1758801041648,-480.0,0.00019893,2]
[387660787,1758801041657,-480.0,0.00019893,2]
[387660789,1758801041666,-480.0,0.00019893,2]
[387660791,1758801041676,-480.0,0.00019893,2]
[387660793,1758801041685,-480.0,0.00019893,2]
[387660795,1758801041695,-480.0,0.00019893,2]
[387660797,1758801041704,-480.0,0.00019893,2]
[387660799,1758801041714,-248.18745539,0.00019893,2]
[387660801,1758801041723,-480.0,0.00019893,2]
[387660803,1758801041732,-275.17647232,0.00019894,2]
[387660805,1758801041741,-547.7335782,0.00019894,2]
[387660807,1758801041750,-480.0,0.00019894,2]
[387660809,1758801041759,-480.0,0.00019894,2]
[387660811,1758801041769,-480.0,0.00019894,2]
[387660813,1758801041778,-501.45038057,0.00019894,2]
[387660815,1758801041787,-480.0,0.00019894,2]
[387660817,1758801041796,-480.0,0.00019894,2]
[387660819,1758801041808,-480.0,0.00019894,2]
[387660821,1758801041817,-480.0,0.00019894,2]
[387660823,1758801041826,-480.0,0.00019894,2]
[387660825,1758801041836,-480.0,0.00019894,2]
[387660827,1758801041845,-480.0,0.00019894,2]
[387660829,1758801041855,-480.0,0.00019894,2]
[387660831,1758801041864,-480.0,0.00019894,2]
[387660833,1758801041874,-480.0,0.00019894,2]
[387660835,1758801041884,-460.18280044,0.00019894,2]
[387660837,1758801041893,-2434.99,0.00019894,2]
[387660839,1758801041902,-500.0,0.00019894,2]
[387660841,1758801041911,-447.76565906,0.00019894,2]
[387660843,1758801041920,-198.81128936,0.00019894,2]
[387660845,1758801041930,-480.0,0.00019894,2]
[387660847,1758801041940,-474.92346152,0.00019894,2]
[387660849,1758801041950,-480.0,0.00019894,2]
[387660851,1758801041959,-480.0,0.00019894,2]
[387660853,1758801041972,-480.0,0.00019894,2]
[387660855,1758801041981,-480.0,0.00019894,2]
[387660857,1758801041991,-480.0,0.00019894,2]
[387660859,1758801042000,-480.0,0.00019894,2]
[387660861,1758801042010,-480.0,0.00019894,2]
[387660863,1758801042019,-480.0,0.00019894,2]
[387660865,1758801042028,-480.0,0.00019894,2]
[387660867,1758801042038,-480.0,0.00019894,2]
[387660869,1758801042048,-485.75844099,0.00019894,2]
[387660871,1758801042059,-480.0,0.00019894,2]
[387660873,1758801042068,-622.4,0.00019894,2]
[387660875,1758801042078,-435.67285477,0.00019894,2]
[387660877,1758801042087,-480.0,0.00019894,2]
[387660879,1758801042097,-480.0,0.00019894,2]
[387660881,1758801042106,-492.84269361,0.00019894,2]
[387660883,1758801042115,-480.0,0.00019894,2]
[387660885,1758801042124,-480.0,0.00019894,2]
[387660887,1758801042134,-420.24981717,0.00019894,2]
[387660888,1758801042143,-480.0,0.00019894,2]
[387660890,1758801042153,-480.0,0.00019894,2]
[387660893,1758801042162,-480.0,0.00019894,2]
[387660895,1758801042173,-480.0,0.00019894,2]
[387660897,1758801042182,-480.0,0.00019894,2]
[387660898,1758801042191,-480.0,0.00019894,2]
[387660900,1758801042202,-480.0,0.00019894,2]
[387660902,1758801042211,-480.0,0.00019894,2]
[387660904,1758801042220,-480.0,0.00019894,2]
[387660906,1758801042230,-480.0,0.00019894,2]
[387660908,1758801042239,-480.0,0.00019894,2]
[387660910,1758801042248,-480.0,0.00019894,2]
[387660912,1758801042258,-1172.01,0.00019894,2]
[387660914,1758801042268,-450.04138659,0.00019894,2]
[387660916,1758801042278,-287.43382295,0.00019894,2]
[387660918,1758801042288,-480.0,0.00019894,2]
[387660920,1758801042297,-249.31148458,0.00019894,2]
[387660922,1758801042307,-252.3971773,0.00019894,2]
[387660924,1758801042316,-480.0,0.00019894,2]
[387660926,1758801042325,-151.0,0.00019897,2]
[387660928,1758801042334,-151.0,0.00019897,2]
[387660930,1758801042343,-500.0,0.00019897,2]
[387660932,1758801042352,-169.92557554,0.00019897,2]
[387660934,1758801042362,-496.53679299,0.000199,2]
[387660936,1758801042371,-500.0,0.00019973,2]
[387660938,1758801042380,-500.0,0.00019973,2]
[387660940,1758801042389,-500.0,0.00019973,2]
[387660941,1758801042398,-500.0,0.00019973,2]
[387660943,1758801042408,-500.0,0.00019973,2]
[387660953,1758801042487,-100000.0,0.0001999,2]
[387660955,1758801042498,-7103.08799745,0.00019999,2]
[387660957,1758801042508,-965.02156447,0.0002,2]
[387660959,1758801042517,-214.39980157,0.00020167,2]